Cogmind - Beta 14 @@@ ROGUE MODE // 2024.08.30 @ 18:23:57 Player: Unit6544 Result: Destroyed by H-55 Commando with Assault Rifle Performance ------------- Evolutions (2) 1000 Regions Visited (5) 1000 Robots Destroyed (30) 150 Value Destroyed (703) 703 Prototype IDs (2) 40 Alien Tech Used (0) 0 Bonus (300) 300 TOTAL SCORE: 3193 Bonus ------- Aligned with FarCom 300 Cogmind --------- Core Integrity 0/550 Matter 293/300 Energy 160/160 System Corruption 0% Temperature Cool (55) Movement Treading (400) Ox3 Location -8/Materials Parts ------- > --- POWER (2) -------- Light Nuclear Core > --- PROPULSION (2) --- Light Treads > --- UTILITY (4) ------ Small Storage Unit Medium Storage Unit Large Storage Unit Large Storage Unit > --- WEAPON (3) ------- Assault Cannon Flak Cannon Gauss Cannon > --- INVENTORY (15) --- Light Armored Exoskeleton System Shield Heavy Assault Rifle Minigun Minigun Peak State ------------ > --- POWER ------------ Ion Engine > --- PROPULSION ------- Armored Huge Wheel > --- UTILITY ---------- Improved Signal Interpreter Medium Armor Plating Medium Armor Plating > --- WEAPON ----------- Minigun Minigun Assault Cannon > --- INVENTORY -------- Armored Huge Wheel System Shield [Rating: 26] Favorites ----------- Power Ion Engine Engine Ion Engine Power Core Light Nuclear Core Propulsion Light Treads Treads Light Treads Leg Light Armored Exoskeleton Wheel Armored Huge Wheel Utility Medium Armor Plating Device Sensor Array Storage Small Storage Unit Processor Improved Signal Interpreter Protection Medium Armor Plating Weapon Minigun Energy Gun Medium Laser Ballistic Gun Minigun Ballistic Cannon Gauss Cannon Build | -11 -10 -10 -10 -9 -8 ------- Run | Yrd Mat Min Exi Min Mat Slots Evolved 4 | . . . . . 4 Power 1 | . . . . . 1 Propulsion . | . . . . . . Utility 2 | . . . . . 2 Weapon 1 | . . . . . 1 Parts Attached 34 | 6 5 2 1 . 20 Power 3 | 1 . . 1 . 1 Engine 2 | 1 . . 1 . . Core 1 | . . . . . 1 Reactor . | . . . . . . Propulsion 7 | 2 . . . . 5 Treads 5 | 2 . . . . 3 Leg 1 | . . . . . 1 Wheel 1 | . . . . . 1 Hover . | . . . . . . Flight . | . . . . . . Utility 10 | 1 3 . . . 6 Device 2 | . 1 . . . 1 Storage 5 | 1 . . . . 4 Processor 1 | . . . . . 1 Hackware . | . . . . . . Protection 2 | . 2 . . . . Artifact . | . . . . . . Weapon 14 | 2 2 2 . . 8 Energy Gun 3 | 2 . . . . 1 Energy Cannon . | . . . . . . Ballistic Gun 4 | . 2 2 . . . Ballistic Cannon 7 | . . . . . 7 Launcher . | . . . . . . Special Weapon . | . . . . . . Impact Weapon . | . . . . . . Slashing Weapon . | . . . . . . Piercing Weapon . | . . . . . . Special Melee Weapon . | . . . . . . Unidentified Prototypes . | . . . . . . Parts Lost 11 | . . . . . 11 Power 1 | . . . . . 1 Propulsion 2 | . . . . . 2 Utility 4 | . . . . . 4 Weapon 4 | . . . . . 4 Highest Loss Streak 7 | . . . . . 7 To Critical Strikes . | . . . . . . Average Slot Usage (%) 89 | . 94 100 100 100 58 Engine 11 | . 14 14 14 14 3 Treads 22 | . 28 28 28 28 7 Leg 1 | . . . . . 4 Storage 1 | . 12 . . . 2 Processor 1 | . . . . . 4 Protection 20 | . 2 28 28 28 6 Energy Gun 2 | . 26 . . . . Ballistic Gun 19 | . 1 28 28 28 2 Ballistic Cannon 5 | . . . . . 20 Peak Build Rating 26 | 6 11 14 14 14 26 Average Rating 14 | 4 6 12 13 14 19 On Entrance 9 | . 6 11 13 14 14 Naked Turns . | . . . . . . Heaviest Build 78 | 14 25 25 25 25 78 Greatest Support 40 | 40 40 40 40 40 40 Greatest Overweight (x) 6 | . . . . . 6 Average Overweight (x) . | . . . . . . Largest Inventory Capacity 15 | 8 8 5 5 5 15 Average Capacity 5 | 7 7 5 5 5 5 Most Carried 6 | 5 4 5 5 4 6 Average Carried 2 | 1 1 4 3 3 2 Final Capacity 15 | 8 5 5 5 5 15 Final Carried 6 | 1 4 4 3 3 6 Class Distribution -------------------- 83% | Mutant 8% | Tank 7% | Skirmisher Dominant Class ---------------- Mutant | -10/Materials Mutant | -10/Mines Mutant | -10/Exiles Mutant | -9/Mines Tank | -8/Materials Resources | -11 -10 -10 -10 -9 -8 ----------- Run | Yrd Mat Min Exi Min Mat Matter Collected 1072 | 170 43 187 . 92 580 Remotely . | . . . . . . Salvage Created 821 | . 43 187 . . 591 Parts 50 | . 4 14 . . 32 Haulers Intercepted . | . . . . . . Recyclers Shooed 1 | . . . . . 1 Parts Field Recycled . | . . . . . . Retrieved Matter . | . . . . . . Parts Self-Destructed . | . . . . . . Prevented . | . . . . . . Kills | -11 -10 -10 -10 -9 -8 ------- Run | Yrd Mat Min Exi Min Mat Combat Hostiles Destroyed 21 | . 1 8 . . 12 Guns 9 | . 1 8 . . . Cannons 12 | . . . . . 12 Classes Destroyed 8 | . 2 1 . . 5 Worker 1 | . . . . . 1 Builder 2 | . . . . . 2 Recycler 3 | . . . . . 3 Mechanic 1 | . . . . . 1 Watcher 2 | . 1 . . . 1 Swarmer 10 | . . 6 . . 4 Grunt 8 | . 1 2 . . 5 Sentry 3 | . . . . . 3 Best Kill Streak 6 | . 1 3 . . 6 Combat Bots Only 5 | . 1 3 . . 5 Max Kills in Single Turn 2 | . 1 2 . . 2 Gunslinging 1 | . . 1 . . . Exploded . | . . . . . . Melee . | . . . . . . Uniques/NPCs Destroyed . | . . . . . . Combat | -11 -10 -10 -10 -9 -8 -------- Run | Yrd Mat Min Exi Min Mat Hostile Shots Fired 183 | . 5 53 . . 125 Missed 35 | . 1 9 . . 25 Damage Taken 2057 | . 44 401 . . 1612 Core 619 | . 11 57 . . 551 Absorbed by Shields . | . . . . . . Core Remaining (%) 86 | 100 . . . 72 . Volleys Fired 64 | . 7 19 . . 38 Largest 3 | . 2 2 . . 3 Hottest 144 | . 100 50 . . 144 Shots Fired 134 | . 14 38 . . 82 Gun 54 | . 14 38 . . 2 Cannon 80 | . . . . . 80 Launcher . | . . . . . . Special . | . . . . . . Kinetic 118 | . . 38 . . 80 Thermal 14 | . 14 . . . . Explosive . | . . . . . . Electromagnetic 2 | . . . . . 2 Robot Hit Streak 9 | . 5 6 . . 9 Robot Miss Streak 9 | . 2 9 . . 6 Penetration Max 1 | . . . . . 1 Secondary Targets 2 | . . 2 . . . Max Gunslinging Chain 1 | . . 1 . . . Shots Hit Robots 73 | . 9 20 . . 44 Core Hits 42 | . 4 9 . . 29 Critical Kills . | . . . . . . Critical Parts Destroyed . | . . . . . . Critical Strikes 6 | . . . . . 6 Blast 6 | . . . . . 6 Melee Attacks . | . . . . . . Impact . | . . . . . . Slashing . | . . . . . . Piercing . | . . . . . . Sneak Attacks . | . . . . . . Combat Hostiles . | . . . . . . Follow-up Attacks . | . . . . . . Damage Inflicted 1889 | . 111 357 . . 1421 Guns 486 | . 111 357 . . 18 Cannons 1373 | . . . . . 1373 Explosions . | . . . . . . Melee . | . . . . . . Ramming 30 | . . . . . 30 Kinetic 1730 | . . 357 . . 1373 Thermal 111 | . 111 . . . . Explosive . | . . . . . . Electromagnetic 18 | . . . . . 18 Impact . | . . . . . . Slashing . | . . . . . . Piercing . | . . . . . . Highest Corruption . | . . . . . . Average Corruption . | . . . . . . Corruption Purged . | . . . . . . Corruption Blocked . | . . . . . . Overload Shots . | . . . . . . Overflow Damage 18 | . . . . . 18 Projectiles 18 | . . . . . 18 Explosions . | . . . . . . Melee . | . . . . . . Knockbacks 14 | . . . . . 14 Impact . | . . . . . . Kinetic 14 | . . . . . 14 Secondary . | . . . . . . Self-Inflicted Damage 12 | . . . . . 12 Shots . | . . . . . . Rammed 6 | . . . . . 6 Targets Rammed 9 | . . . . . 9 Kicked 3 | . . . . . 3 Crushed . | . . . . . . Highest Temperature 506 | . 174 81 . . 506 Average Temperature 112 | . 66 32 . . 155 Received Heat Transfer 963 | . 24 66 . . 873 Effects 4 | . . . . . 4 Shutdowns 3 | . . . . . 3 Short Circuit 1 | . . . . . 1 Siege Activations . | . . . . . . Robots Corrupted . | . . . . . . Combat Hostiles . | . . . . . . Parts Fried . | . . . . . . Impact Corruptions . | . . . . . . Robots Melted . | . . . . . . Combat Hostiles . | . . . . . . Parts Melted 1 | . 1 . . . . Heat Transferred 333 | . 333 . . . . Parts Sabotaged . | . . . . . . Parts Stolen . | . . . . . . Parts Stripped . | . . . . . . Power Chain Reactions . | . . . . . . Alert | -11 -10 -10 -10 -9 -8 ------- Run | Yrd Mat Min Exi Min Mat Peak Influence 238 | . 59 122 . . 238 Initial 22 | . . 22 . . . Average 57 | . 34 99 . . 65 Maximum Alert Level 1 | . . . . . 1 Low Security (%) 97 | 100 100 100 . 100 93 Level 1 2 | . . . . . 6 Level 2 . | . . . . . . Level 3 . | . . . . . . Level 4 . | . . . . . . Level 5 . | . . . . . . High Security . | . . . . . . Max Security . | . . . . . . Squads Dispatched 3 | . 1 . . . 2 Investigation . | . . . . . . Extermination . | . . . . . . Reinforcement 3 | . 1 . . . 2 Assault . | . . . . . . Garrison . | . . . . . . Intercept . | . . . . . . Searches Triggered . | . . . . . . Construction Impeded 1 | . . . . . 1 Haulers Reinforced . | . . . . . . Active Scanning Responses . | . . . . . . Cargo Convoy Interrupts . | . . . . . . Stealth | -11 -10 -10 -10 -9 -8 --------- Run | Yrd Mat Min Exi Min Mat Distress Signals 3 | . . . . . 3 Communications Jammed . | . . . . . . Distress Signals . | . . . . . . Times Spotted 30 | . 3 8 . . 19 Peak Tracking Total 7 | . 1 3 . . 7 Tactical Retreats 1 | . . . . . 1 Traps | -11 -10 -10 -10 -9 -8 ------- Run | Yrd Mat Min Exi Min Mat Traps Triggered 1 | . . 1 . . . Indirectly . | . . . . . . Trap Hack Attempts . | . . . . . . Triggered . | . . . . . . Disarmed . | . . . . . . Reprogrammed . | . . . . . . Reused . | . . . . . . Traps Extracted . | . . . . . . Installed . | . . . . . . Triggered . | . . . . . . Machines | -11 -10 -10 -10 -9 -8 ---------- Run | Yrd Mat Min Exi Min Mat Machines Disabled 2 | . . . . . 2 Max in Single Turn 1 | . . . . . 1 Machines Repaired . | . . . . . . Machines Dismantled . | . . . . . . Machines Sabotaged . | . . . . . . Overloaded Fab Kills . | . . . . . . Hacking | -11 -10 -10 -10 -9 -8 --------- Run | Yrd Mat Min Exi Min Mat Machines Accessed 6 | . 1 2 2 . 1 Terminals 3 | . 1 1 . . 1 Fabricators . | . . . . . . Repair Stations . | . . . . . . Recycling Units . | . . . . . . Scanalyzers . | . . . . . . Garrison Access . | . . . . . . Total Hacks 17 | . 3 4 8 . 2 Successful 14 | . 2 2 8 . 2 Failed 3 | . 1 2 . . . Catastrophic 1 | . . 1 . . . Database Lockouts . | . . . . . . Manual 1 | . . . 1 . . Terminals 8 | . 3 3 . . 2 Fabricators . | . . . . . . Repair Stations . | . . . . . . Recycling Units . | . . . . . . Scanalyzers . | . . . . . . Garrison Access . | . . . . . . Terminal Hacks 14 | . 2 2 8 . 2 Record 8 | . . . 8 . . Prototype ID Bank 1 | . . . . . 1 Open Door 1 | . . 1 . . . Branch Access Points 1 | . 1 . . . . Investigation Status 2 | . 1 1 . . . Reinforcement Status 1 | . . . . . 1 Fabricator Hacks . | . . . . . . Repair Station Hacks . | . . . . . . Recycling Unit Hacks . | . . . . . . Scanalyzer . | . . . . . . Garrison Access Hacks . | . . . . . . Unauthorized Hacks . | . . . . . . Terminals . | . . . . . . Fabricators . | . . . . . . Repair Stations . | . . . . . . Recycling Units . | . . . . . . Scanalyzers . | . . . . . . Garrison Access . | . . . . . . Data Cores Recovered . | . . . . . . Used . | . . . . . . Hacking Detections 2 | . 1 . . . 1 Full Trace Events . | . . . . . . Feedback Events . | . . . . . . Feedback Blocked . | . . . . . . Robot Schematics Acquired . | . . . . . . Robots Built . | . . . . . . Authchips . | . . . . . . Time . | . . . . . . Total Robot Build Rating . | . . . . . . Part Schematics Acquired . | . . . . . . Parts Built . | . . . . . . Authchips . | . . . . . . Time . | . . . . . . Total Part Build Rating . | . . . . . . Parts Repaired . | . . . . . . Time . | . . . . . . Parts Recycled . | . . . . . . Recycled Matter . | . . . . . . Retrieved Matter . | . . . . . . Retrieved Components . | . . . . . . Parts Scanalyzed . | . . . . . . Part Schematics Acquired . | . . . . . . Parts Damaged . | . . . . . . Bothacking | -11 -10 -10 -10 -9 -8 ------------ Run | Yrd Mat Min Exi Min Mat Used RIF Installer . | . . . . . . Robots Hacked . | . . . . . . Non-combat . | . . . . . . Combat . | . . . . . . Robot Hacks Applied . | . . . . . . Relay Couplers Released . | . . . . . . Fabnet Peak Effective % . | . . . . . . Robots Rewired . | . . . . . . Allies Hacked . | . . . . . . Hacks Repelled . | . . . . . . Allies | -11 -10 -10 -10 -9 -8 -------- Run | Yrd Mat Min Exi Min Mat Total Allies . | . . . . . . Largest Group . | . . . . . . Highest-Rated Group . | . . . . . . Highest-Rated Ally . | . . . . . . Total Orders . | . . . . . . Ally Attacks . | . . . . . . Total Damage . | . . . . . . Kills . | . . . . . . Allies Corrupted . | . . . . . . Allies Melted . | . . . . . . Intel | -11 -10 -10 -10 -9 -8 ------- Run | Yrd Mat Min Exi Min Mat Robot Analysis Total . | . . . . . . Derelict Logs Recovered 3 | . . 2 . 1 . Drone Launches . | . . . . . . Drone Recoveries . | . . . . . . Exploration | -11 -10 -10 -10 -9 -8 ------------- Run | Yrd Mat Min Exi Min Mat Turns Passed 3516 | 74 304 752 1062 480 844 Spaces Moved 2085 | 53 168 432 662 300 470 Core 105 | 21 . . . . 84 Treads 1752 | 32 168 432 662 300 158 Legs 224 | . . . . . 224 Wheels 4 | . . . . . 4 Hover . | . . . . . . Flight . | . . . . . . Fastest Speed 50 | 50 160 160 160 160 50 Average Speed 155 | 116 160 160 160 160 144 Slowest Speed 400 | 160 160 160 160 160 400 Overloaded Moves . | . . . . . . Propulsion Burnouts . | . . . . . . Robots Hopped . | . . . . . . Cave-ins Triggered . | . . . . . . Exploration Rate (%) 48 | 4 24 91 92 54 24 Regions Visited 5 Branch Regions 3 Pre-discovered Areas 2 | . . 1 1 . . Known Exits Taken 1 | . 1 . . . . Unknown Exits Taken 4 | 1 . 1 1 1 . Scrap Searched 1 | . . . . 1 . Spaces Dug . | . . . . . . Terrain Destroyed 30 | . . . . . 30 Melee . | . . . . . . Projectile 30 | . . . . . 30 AOE . | . . . . . . Terrain Rammed . | . . . . . . Walls Destroyed . | . . . . . . Machines Disabled . | . . . . . . Actions | -11 -10 -10 -10 -9 -8 --------- Run | Yrd Mat Min Exi Min Mat Total 2261 | 65 191 466 666 301 572 Wait . | . . . . . . Move 2080 | 52 167 431 661 299 470 Hop . | . . . . . . Pick Up 49 | 7 8 7 1 1 25 Fast Attach . | . . . . . . Attach 34 | 6 5 2 1 . 20 Detach 1 | . . . 1 . . Swap . | . . . . . . Drop 24 | . 4 7 2 1 10 Fire 64 | . 7 19 . . 38 Melee . | . . . . . . Ram 6 | . . . . . 6 Kick 3 | . . . . . 3 Crush . | . . . . . . Escape Stasis . | . . . . . . Rewire . | . . . . . . Trap . | . . . . . . Miscellaneous . | . . . . . . Route ------- -11/Scrapyard -10/Materials (discovered 2 exits: *Min x2) -10/Mines (discovered 3 exits: [*Mat x2] / *Exi) -10/Exiles (discovered 2 exits: [*Min x2]) -9/Mines (discovered 2 exits: *Mat x2) -8/Materials History --------- Turn | Location | Event 6 | -11/Scrapyard | Discovered new exit (range 16) 75 | -11/Scrapyard | Entered Materials 301 | -10/Materials | Build established: Mutant 311 | -10/Materials | Discovered new exit (range 15) 320 | -10/Materials | Identified exit to Mines 379 | -10/Materials | Entered Mines 426 | -10/Mines | Learned Materials garrison access intel 499 | -10/Mines | Met a Derelict who couldn't figure out how to use a Trap Extractor 593 | -10/Mines | Discovered new exit (range 14) 853 | -10/Mines | Discovered new exit (range 8) 1000 | -10/Mines | Found a hidden stash of uninstalled traps 1088 | -10/Mines | Learned location of Zion (-7) 1125 | -10/Mines | Deemed a non-threat by the Exiles lab entrance 1125 | -10/Mines | Discovered new exit (range 5) 1131 | -10/Mines | Entered Exiles 1162 | -10/Exiles | Discovered new exit (range 15) 1212 | -10/Exiles | Met 8R-AWN 1234 | -10/Exiles | Met EX-HEX 1301 | -10/Exiles | Met EX-DEC 1426 | -10/Exiles | Visited The Gauntlet 1708 | -10/Exiles | Discovered new exit (range 14) 1829 | -10/Exiles | Met EX-BIN 1906 | -10/Exiles | Aligned with FarCom system 1908 | -10/Exiles | Given EX-Vault access code 2193 | -10/Exiles | Entered Mines 2297 | -9/Mines | Learned Materials non-interactive machine intel 2414 | -9/Mines | YI-UF0 nonchalantly dropped a Grenade Launcher on the ground 2557 | -9/Mines | Discovered new exit (range 7) 2568 | -9/Mines | Discovered new exit (range 10) 2673 | -9/Mines | Entered Materials 2673 | -8/Materials | Evolved 4 slots: Power x1, Utility x2, Weapon x1 2674 | -8/Materials | Loaded intel: 24 non-interactive machine locations 2675 | -8/Materials | Loaded intel: 1 garrison access location 2967 | -8/Materials | Build established: Tank 3012 | -8/Materials | Lost 3 parts (3u) 3060 | -8/Materials | Core integrity fell below 50% 3084 | -8/Materials | Lost 7 parts (1p2n4w) 3107 | -8/Materials | Core integrity fell below 20% 3517 | -8/Materials | Destroyed by H-55 Commando with Assault Rifle Last Messages --------------- R-06 Scavenger collects Lgt. Treads. R-06 Scavenger knocked back. R-06 Scavenger destroyed. R-06 Scavenger collects Lgt. Treads. U-05 Engineer builds a Wall. R-06 Scavenger collects Sml. Storage Unit. R-06 Scavenger destroyed. U-05 Engineer knocked back. U-05 Engineer destroyed. U-05 Engineer builds a Wall. Acquired 117 matter. U-05 Engineer builds a Wall. Acquired Lgt. Treads. Dropped Lgt. Armored Exoskeleton. Acquired Lgt. Armored Exoskeleton. U-05 Engineer builds a Wall. U-05 Engineer knocked back. U-05 Engineer destroyed. Acquired 37 matter. Penetrated by Slug. Map ----- +----------------------------------------------------+ | | | | | | | | | | | | | | | | | | | | | | | | | | | ?????????????????????????????????????????????????? | | ???????????Y?????????????????????????????????????? | | ?????????????????????????????????????????????????? | | ?????????????????????????????????????????????????? | | ??????????????????????????????????????"""????????? | | ??????????????????????????????????????"""????????? | | ??????????????????????????????????????"""????????? | | ?????????????????????????????????????????????????? | | ?????????????????????????????????????????????????? | | ?????????????????????????????????????????????????? | | ???????????????????????????###???##??????????????? | | ??????????????????##########;######### ??? | | ??????????????????#|!=%* @!= !%*%!=%%h ??? | | ??????????????????# ######=! ![###### ??? | | ??????????######### #???## % !#???????????????## | | ??? #???## #???????????????# | | ??????????######### #???###! ##???????????????# | | ????????????#######+###???######????????????????# | | """?????????#[[ #??????????????????######## | | """?????????#[[ #??????????????????# | | """?????????#[ #??????????????????# | | ????????????# #??????????????????# | | ????????????# #??????????????????# ##### | | ????????????# #??????????????????# # | | ????????????# #??????????????????# # | | ????????????# #??????????????????# + """ | | ???????##########+######################## # """ | | ?? # """ | | ?? # """ | | ?? # """ | | ???############# ###+################### # | | ???????????????# #?# #???????????????# ##### | | ??"""?"""??????# #?# #???????????????# #???? | | ?"""""""""?????# #?# #??"""??????????# #???? | | ??"""""?"??????# #?# #?"""""?????????# #???? | | ???????????????# #?# #?"""""?????????# ##### | | ???????????????# #?# #?"""""?????????# ==# | +----------------------------------------------------+ Best States ------------- Heat Dissipation 31 Energy Generation 14 Energy Capacity 250 Matter Stores 300 Matter Capacity 300 Sight Range 16 Robot Scan Range 14 Terrain Scan Density 10 Armor Coverage 450 Evasion (%) 55 Recoil Reduction 2 Item Schematics ----------------- None Robot Schematics ------------------ None Fabricated ------------ Nothing Alien Tech Used ----------------- None Achievements -------------- Please Form A Line Storm Trooper Tourist Challenges ------------ None Game ------ Seed ClaymoresServoCapacitor Manual? 0 Play Time 00:38:28 Cumulative 1.7 hours Start 2024.08.30 @ 17:35:06 End 2024.08.30 @ 18:23:57 Sessions 1 Manual Loads 0 Difficulty Rogue Special Mode None Game No. 6 Rogue 6 Adventurer 0 Explorer 0 Win Type - Total 0 Types 0/0/0/0/0/0/0/0/0 Lore% 1 Gallery% 5 Achievement% 4 Wizard Run 0 Options --------- Layout 1 ASCII 0 Keyboard 0 Movement Mouse Keybinds 0 Fullscreen 1 Font 24/Smallcaps Map View 50x40 Zoom Use 0% Tactical HUD 0 Map Filters NONE Filters NONE Steam 1 RUN: 94fed73a-b03c-4d84-a425-835143fdc345